bitfinex-derivatives/quotes_BTCF0:USTF0_20250119
["timestamp","ask_amount","ask_price","bid_price","bid_amount"]
[1737305085797,0.09161084,104960.0,104950.0,0.05069371]
[1737305085998,0.09161084,104960.0,104950.0,0.08799371]
[1737305086302,0.09161084,104960.0,104950.0,0.09276745]
[1737305087001,0.26303544,104960.0,104950.0,0.26444067]
[1737305087501,0.26303544,104960.0,104950.0,0.26444064]
[1737305088297,0.26303544,104960.0,104950.0,0.25668322]
[1737305089700,0.26303544,104960.0,104950.0,0.25936715]
[1737305090805,0.34882047,104960.0,104950.0,0.69881532]
[1737305091608,0.34882047,104960.0,104950.0,0.69881533]
[1737305092299,0.25720963,104960.0,104950.0,0.73320094]
[1737305092498,0.25720963,104960.0,104950.0,1.13070094]
[1737305092699,0.30491563,104960.0,104950.0,1.13070094]
[1737305093104,0.30491563,104960.0,104950.0,1.13070088]
[1737305093793,0.30491563,104960.0,104950.0,0.76990088]
[1737305094409,0.30491563,104960.0,104950.0,1.13070088]
[1737305094904,0.30491563,104960.0,104950.0,0.76990088]
[1737305095103,0.30491563,104960.0,104950.0,0.76990091]
[1737305096409,0.30491563,104960.0,104950.0,0.7746746]
[1737305097507,0.25720963,104960.0,104950.0,1.1354746]
[1737305097709,0.5799266,104970.0,104960.0,0.047706]
[1737305097902,0.5799266,104970.0,104960.0,0.08984884]
[1737305098494,0.61431221,104970.0,104960.0,0.05546323]
[1737305099110,0.61431221,104970.0,104960.0,0.22717646]
[1737305100312,0.65321221,104970.0,104960.0,0.22717646]
[1737305101808,0.65321221,104970.0,104960.0,0.05546323]
[1737305102720,0.69001221,104970.0,104960.0,0.05068954]
[1737305103017,0.51858761,104970.0,104960.0,0.05068954]
[1737305103411,0.51858761,104970.0,104960.0,0.047706]
[1737305105009,0.51858761,104970.0,104960.0,0.44837021]
[1737305106202,0.51858761,104970.0,104960.0,0.27665698]
[1737305111418,0.51858761,104970.0,104960.0,0.31402601]
[1737305111419,0.484202,104970.0,104960.0,0.31402601]
[1737305111620,0.3608,104970.0,104960.0,0.31879947]
[1737305112122,0.26333149,104980.0,104960.0,0.31879947]
[1737305112123,0.26333149,104980.0,104970.0,0.047701]
[1737305112423,0.26333149,104980.0,104970.0,0.05545739]
[1737305113122,0.26333149,104980.0,104970.0,0.05068442]
[1737305113320,0.09177764,104980.0,104970.0,0.2796354]
[1737305114317,0.00969203,104980.0,104970.0,0.67959399]
[1737305114534,1.07516031,104990.0,104970.0,0.3552936]
[1737305114717,1.07516031,104990.0,104980.0,0.047697]
[1737305114923,1.07516031,104990.0,104980.0,0.05068008]
[1737305115111,1.11932785,104990.0,104980.0,0.002983]
[1737305115317,1.11932785,104990.0,104970.0,0.27665098]
[1737305115518,0.47726822,104980.0,104970.0,0.27963409]
[1737305115713,0.11646822,104980.0,104970.0,0.33649952]
[1737305115920,0.44288261,104980.0,104970.0,0.33649952]
[1737305116627,0.44288261,104980.0,104970.0,0.33649956]
[1737305117028,0.44288261,104980.0,104970.0,0.45091445]
[1737305118625,0.44288261,104980.0,104970.0,0.4479313]
[1737305119924,0.44288261,104980.0,104970.0,0.0477]
[1737305121619,0.408497,104980.0,104970.0,0.08208561]
[1737305122021,0.08208261,104980.0,104970.0,0.0477]
[1737305122427,0.047697,104980.0,104970.0,0.08208561]
[1737305122626,0.24711355,104980.0,104970.0,0.08208561]
[1737305123517,0.24711355,104980.0,104970.0,0.12048561]
[1737305123929,0.047697,104980.0,104970.0,0.12048561]
[1737305126424,0.047697,104980.0,104970.0,0.1234686]
[1737305127735,0.047697,104980.0,104970.0,0.5236999]
[1737305128531,0.047697,104980.0,104970.0,0.52847264]
[1737305129029,0.19063632,104980.0,104970.0,0.52847264]
[1737305129633,0.19063632,104980.0,104970.0,0.52369988]
[1737305130339,0.19063632,104980.0,104970.0,0.52071691]
[1737305130540,0.047697,104980.0,104970.0,0.35217216]
[1737305130926,0.047697,104980.0,104970.0,0.34918921]
[1737305131142,0.08208261,104980.0,104970.0,0.31778657]
[1737305131345,0.047697,104980.0,104970.0,0.31778657]
[1737305131539,0.08208261,104980.0,104970.0,0.31778657]
[1737305132740,0.22502193,104980.0,104970.0,0.31778657]
[1737305133634,0.19063632,104980.0,104970.0,0.32255935]
[1737305133843,0.19063632,104980.0,104970.0,0.49398956]
[1737305134538,0.19063632,104980.0,104970.0,0.49398961]
[1737305135036,0.047697,104980.0,104970.0,0.3225594]
[1737305136545,0.047697,104980.0,104970.0,0.60837581]
[1737305138332,0.22502193,104980.0,104970.0,0.93976395]
[1737305139448,0.08208261,104980.0,104970.0,0.0938558]
[1737305140541,0.44288261,104980.0,104970.0,0.05545604]
[1737305140853,0.58582193,104980.0,104970.0,0.05545604]
[1737305141148,0.58582193,104980.0,104970.0,0.05068309]
[1737305141649,0.58582193,104980.0,104970.0,0.27648527]
[1737305143541,0.64229916,104980.0,104970.0,0.0477]
[1737305146039,0.64229916,104980.0,104970.0,0.04678742]
[1737305148043,0.60791355,104980.0,104970.0,0.04678742]
[1737305148245,0.047701,104970.0,104960.0,0.21930474]
[1737305148441,0.55878661,104970.0,104960.0,0.21930474]
[1737305148640,0.55878661,104970.0,104960.0,0.22228823]
[1737305150143,0.87359407,104970.0,104960.0,0.4510735]
[1737305150652,0.87359407,104970.0,104960.0,0.45107361]
[1737305151348,0.70188091,104970.0,104960.0,0.45107361]
[1737305151548,0.73626652,104970.0,104960.0,0.45107361]
[1737305151753,0.73626652,104970.0,104960.0,0.44809001]
[1737305151952,0.70188091,104970.0,104960.0,0.44809001]
[1737305152156,0.73626652,104970.0,104960.0,0.40038501]
[1737305152349,0.70188091,104970.0,104960.0,0.33241372]
[1737305152549,0.70188091,104970.0,104960.0,0.32943007]
[1737305153051,0.90797968,104970.0,104960.0,0.10362851]
[1737305153355,0.87359407,104970.0,104960.0,0.10362851]
[1737305154055,0.88321165,104970.0,104960.0,0.10362851]
[1737305154951,0.71149849,104970.0,104960.0,0.10362851]
[1737305155944,0.71149849,104970.0,104960.0,0.1006448]
[1737305156149,0.71149849,104970.0,104960.0,0.1483508]
[1737305158760,0.71149849,104970.0,104960.0,0.1006448]
[1737305159456,0.74011735,104970.0,104950.0,0.31239427]
[1737305159759,0.74011735,104970.0,104950.0,0.083609]
[1737305159760,0.08209161,104960.0,104950.0,0.083609]
[1737305160560,0.22489915,104960.0,104950.0,0.083609]
[1737305161948,0.39661231,104960.0,104950.0,0.083609]
[1737305163358,0.22489915,104960.0,104950.0,0.083609]
[1737305163761,0.22489915,104960.0,104950.0,0.08659258]
[1737305164363,0.22489915,104960.0,104950.0,0.08614334]
[1737305164960,0.19051354,104960.0,104950.0,0.08614334]
[1737305165167,0.19051354,104960.0,104950.0,0.12052895]
[1737305165560,0.22489915,104960.0,104950.0,0.08614334]
[1737305165759,0.25928476,104960.0,104950.0,0.05069258]
[1737305165965,0.25928476,104960.0,104950.0,0.05069262]
[1737305166169,0.58569915,104960.0,104950.0,0.05069263]
[1737305166462,0.59153969,104960.0,104950.0,0.05069263]
[1737305166659,0.55715408,104960.0,104950.0,0.05069263]
[1737305167764,0.55715408,104960.0,104950.0,0.047709]
[1737305168870,0.55715408,104960.0,104950.0,0.05069274]
[1737305169463,0.52276847,104960.0,104950.0,0.08507835]
[1737305170268,0.16196847,104960.0,104950.0,0.08985212]
[1737305170965,0.11426247,104960.0,104950.0,0.45065212]
[1737305171169,0.11426247,104960.0,104950.0,0.71613739]
[1737305172464,0.25707001,104960.0,104950.0,0.52173773]
[1737305172664,0.25707001,104960.0,104950.0,0.55276259]
[1737305172863,0.25707001,104960.0,104950.0,0.56767824]
[1737305174067,0.11426247,104960.0,104950.0,0.79646351]
[1737305174266,0.11426247,104960.0,104950.0,0.7620779]
[1737305175568,0.11426247,104960.0,104950.0,0.79646351]
[1737305175768,0.11426247,104960.0,104950.0,0.80596358]
[1737305176471,0.11426247,104960.0,104950.0,0.80596215]
[1737305177571,0.14280754,104970.0,104960.0,0.047706]
[1737305177768,0.14280754,104970.0,104960.0,0.5593333]
[1737305178475,0.58569415,104970.0,104960.0,0.05546198]
[1737305178676,0.69589415,104970.0,104960.0,0.05068907]
[1737305178972,0.69589415,104970.0,104960.0,0.00298347]
[1737305179179,0.047706,104960.0,104950.0,0.32037895]
[1737305179476,0.08209161,104960.0,104950.0,0.34600798]
[1737305179676,0.047706,104960.0,104950.0,0.38039359]
[1737305179874,0.408506,104960.0,104950.0,0.38039359]
[1737305180080,0.047706,104960.0,104950.0,0.38039359]
[1737305180475,0.047706,104960.0,104950.0,0.94488226]
[1737305181479,0.55308861,104970.0,104960.0,0.047706]
[1737305183373,0.19228861,104970.0,104960.0,0.05068941]
[1737305183573,0.55308861,104970.0,104960.0,0.05068941]
[1737305184176,0.55308861,104970.0,104960.0,0.27899043]
[1737305184379,0.55308861,104970.0,104960.0,0.27600702]
[1737305185082,0.55308861,104970.0,104960.0,0.2789906]
[1737305185471,0.55308861,104970.0,104960.0,0.047706]
[1737305185871,0.55308861,104970.0,104960.0,0.00298364]
[1737305186079,0.58747422,104970.0,104960.0,0.00298364]
[1737305186278,0.55308861,104970.0,104960.0,0.00298371]
[1737305186882,0.047706,104960.0,104950.0,0.27600902]
[1737305187082,0.44289161,104960.0,104950.0,0.28376665]
[1737305188382,0.58569915,104960.0,104950.0,0.05546565]
[1737305189586,0.75741231,104960.0,104950.0,0.05546565]
[1737305190187,0.75741231,104960.0,104950.0,0.047708]
[1737305190376,0.75741231,104960.0,104950.0,0.05546563]
[1737305192786,0.6753207,104960.0,104950.0,0.08985124]
[1737305193093,0.3145207,104960.0,104950.0,0.08985124]
[1737305193678,0.32401447,104960.0,104950.0,0.08985124]
[1737305194789,0.32401447,104960.0,104950.0,0.0898508]
[1737305194987,0.15230131,104960.0,104950.0,0.0898508]
[1737305195583,0.18668692,104960.0,104950.0,0.0898508]
[1737305195883,0.18668692,104960.0,104950.0,0.05546519]
[1737305196084,0.04387938,104960.0,104950.0,0.28376621]
[1737305198389,0.04387938,104960.0,104950.0,0.28376618]
[1737305199593,0.04387938,104960.0,104950.0,0.90544269]
[1737305200595,0.66150954,104970.0,104950.0,0.90544269]
[1737305200596,0.69589515,104970.0,104950.0,0.85773469]
[1737305200794,0.69589515,104970.0,104960.0,0.047706]
[1737305200989,0.69589515,104970.0,104960.0,0.05068952]
[1737305201293,0.69589515,104970.0,104960.0,0.05546302]
[1737305201593,0.69589515,104970.0,104960.0,0.05068952]
[1737305202291,0.69589515,104970.0,104960.0,0.05068946]
[1737305202695,0.69589515,104970.0,104960.0,0.047706]
[1737305202994,0.69589515,104970.0,104960.0,0.05068949]
[1737305203494,0.70562699,104970.0,104960.0,0.05068949]
[1737305207198,0.87734015,104970.0,104960.0,0.05068949]
[1737305209001,0.87734015,104970.0,104960.0,0.047706]
[1737305209602,0.73453261,104970.0,104960.0,0.27600702]
[1737305211003,0.56281945,104970.0,104960.0,0.047706]
[1737305212302,0.762236,104970.0,104960.0,0.047706]
[1737305215695,0.762236,104970.0,104940.0,0.94751743]
[1737305215899,0.44289561,104960.0,104950.0,0.04771]
[1737305216206,0.44289561,104960.0,104950.0,0.06143482]
[1737305217906,0.44289561,104960.0,104950.0,0.91211839]
[1737305217907,0.58602528,104960.0,104950.0,0.91211839]
[1737305218203,0.58602528,104960.0,104950.0,0.90615106]
[1737305218597,0.58602528,104960.0,104950.0,0.89839357]
[1737305218799,0.58602528,104960.0,104950.0,0.90615115]
[1737305219205,0.58602528,104960.0,104950.0,0.67785013]
[1737305220507,0.62041089,104960.0,104950.0,0.63014013]
[1737305220807,0.62041089,104960.0,104950.0,0.63008013]
[1737305221995,0.62041089,104960.0,104950.0,0.00775758]
[1737305223005,0.62041089,104960.0,104950.0,0.05546758]
[1737305223404,0.62041089,104960.0,104950.0,0.05546785]
[1737305224508,0.62041089,104960.0,104950.0,0.28415246]
[1737305225608,0.04771,104950.0,104940.0,0.34015087]
[1737305225904,0.55179561,104950.0,104940.0,0.34015087]
[1737305226106,0.58618122,104950.0,104940.0,0.34015087]
[1737305227008,0.58618122,104950.0,104940.0,0.31368248]
[1737305227597,0.75793683,104950.0,104930.0,0.047719]
[1737305227802,0.47728622,104940.0,104930.0,0.047719]
[1737305228507,0.47728622,104940.0,104930.0,0.02865286]
[1737305229100,0.62029741,104940.0,104930.0,0.02865286]
[1737305230209,0.47728622,104940.0,104930.0,0.02865286]
[1737305232510,0.48690877,104940.0,104930.0,0.02865286]
[1737305233814,0.48690877,104940.0,104930.0,0.0282582]
[1737305234218,0.047719,104930.0,104920.0,0.00142913]
[1737305234516,0.047729,104910.0,104900.0,0.581531]
[1737305234910,0.08211461,104910.0,104900.0,0.220731]
[1737305235208,0.08211461,104910.0,104900.0,0.17723357]
[1737305235414,0.44291461,104910.0,104900.0,0.14083357]
[1737305235614,0.47911461,104910.0,104900.0,0.14083357]
[1737305236010,0.47911461,104910.0,104900.0,0.09310257]
[1737305236211,0.51571461,104910.0,104900.0,0.09310257]
[1737305237713,0.15491461,104910.0,104900.0,0.09310257]
[1737305238911,0.51571461,104910.0,104900.0,0.09310257]
[1737305239419,0.15491461,104910.0,104900.0,0.09310257]
[1737305240418,0.51571461,104910.0,104900.0,0.09310257]
[1737305241317,0.52549175,104910.0,104900.0,0.09310257]
[1737305245713,0.56179175,104910.0,104900.0,0.09310257]
[1737305246409,0.59617736,104910.0,104900.0,0.09310257]
[1737305247719,0.71021466,104910.0,104890.0,0.083334]
[1737305247923,0.11650422,104900.0,104890.0,0.07909079]
[1737305249618,0.08211861,104900.0,104890.0,0.07909079]
[1737305250027,0.08211861,104900.0,104890.0,0.07871538]
[1737305254130,0.44291861,104900.0,104890.0,0.07871538]
[1737305256330,0.52549175,104910.0,104900.0,0.047733]
[1737305256924,0.63952905,104910.0,104900.0,0.047733]
[1737305257729,0.60292905,104910.0,104900.0,0.047733]
[1737305258427,0.48889175,104910.0,104900.0,0.047733]
[1737305259424,0.30477449,104920.0,104900.0,0.47730422]
[1737305259727,0.25704849,104920.0,104910.0,0.08211461]
[1737305259927,0.2914341,104920.0,104910.0,0.11711461]
[1737305260134,0.25704849,104920.0,104910.0,0.11711461]
[1737305260336,0.2914341,104920.0,104910.0,0.12009934]
[1737305260536,0.2914341,104920.0,104910.0,0.48089934]
[1737305260839,0.2914341,104920.0,104910.0,0.44651373]
[1737305261035,0.03438561,104920.0,104910.0,0.48089934]
[1737305261236,0.23404391,104930.0,104910.0,0.43317034]
[1737305261539,0.23404391,104930.0,104920.0,0.047724]
[1737305261832,0.59484391,104930.0,104920.0,0.047724]
[1737305262533,0.60445387,104930.0,104920.0,0.047724]
[1737305262839,0.66217218,104930.0,104920.0,0.047724]
[1737305270140,0.49041657,104930.0,104920.0,0.047724]
[1737305270442,0.6044807,104930.0,104920.0,0.047724]
[1737305270938,0.2436807,104930.0,104920.0,0.047724]
[1737305271146,0.6044807,104930.0,104920.0,0.047724]
[1737305272436,0.047726,104920.0,104910.0,0.047727]
[1737305272636,0.08211161,104920.0,104910.0,0.047727]
[1737305272936,0.44291161,104920.0,104910.0,0.047727]
[1737305274532,0.44291161,104920.0,104910.0,0.21911278]
[1737305274950,0.48081161,104920.0,104910.0,0.21911278]
[1737305275639,0.51519722,104920.0,104910.0,0.17138578]
[1737305275843,0.55239722,104920.0,104910.0,0.17138578]
[1737305277333,0.047729,104910.0,104900.0,0.61781778]
[1737305277530,0.08211461,104910.0,104900.0,0.62080267]
[1737305280133,0.08211461,104910.0,104900.0,0.26000267]
[1737305280338,0.08211461,104910.0,104900.0,0.08861689]
[1737305281036,0.047729,104910.0,104900.0,0.1230025]
[1737305281746,0.05707611,104910.0,104900.0,0.12300251]
[1737305281947,0.09146172,104910.0,104900.0,0.12300251]
[1737305282241,0.09146172,104910.0,104900.0,0.0886169]
[1737305282745,0.09146172,104910.0,104900.0,0.08861691]
[1737305283246,0.45226172,104910.0,104900.0,0.08861691]
[1737305283441,0.45226172,104910.0,104900.0,0.085632]
[1737305283749,0.09146172,104910.0,104900.0,0.085632]
[1737305283942,0.09146172,104910.0,104900.0,0.08861696]
[1737305284642,0.09146172,104910.0,104900.0,0.085632]
[1737305285039,0.56632585,104910.0,104900.0,0.085632]
[1737305285839,0.60082585,104910.0,104900.0,0.085632]
[1737305286341,0.62934189,104910.0,104900.0,0.25722198]
[1737305286950,0.62934189,104910.0,104900.0,0.21775072]
[1737305287740,0.8010975,104910.0,104900.0,0.04616074]
[1737305288445,0.4402975,104910.0,104900.0,0.04616074]
[1737305289246,0.29771733,104910.0,104900.0,0.04616074]
[1737305290049,0.65851733,104910.0,104900.0,0.04616074]
[1737305290253,0.29771733,104910.0,104900.0,0.04616074]
[1737305290547,0.3441458,104910.0,104900.0,0.04616074]
[1737305291542,0.29771733,104910.0,104900.0,0.04914581]
[1737305292447,0.65851733,104910.0,104900.0,0.04914581]
[1737305292634,0.29771733,104910.0,104900.0,0.04914581]
[1737305292838,0.24008253,104910.0,104900.0,0.44952243]
[1737305294149,0.60088253,104910.0,104900.0,0.44952243]
[1737305294645,0.60088253,104910.0,104900.0,0.44653736]
[1737305294846,0.60088253,104910.0,104900.0,0.44952245]
[1737305295850,0.24008253,104910.0,104900.0,0.44952245]
[1737305296050,0.60088253,104910.0,104900.0,0.44939605]
[1737305296649,0.60088253,104910.0,104900.0,0.44939607]
[1737305298554,0.60088253,104910.0,104900.0,0.44641096]
[1737305299554,0.24008253,104910.0,104900.0,0.44641096]
[1737305299848,0.17119692,104910.0,104900.0,0.48079657]
[1737305300056,0.20558253,104910.0,104900.0,0.47991096]
[1737305301063,0.26321733,104910.0,104900.0,0.07953434]
[1737305302166,0.26321733,104910.0,104900.0,0.08251931]
[1737305302549,0.30964399,104910.0,104900.0,0.08251931]
[1737305302957,0.30964399,104910.0,104900.0,0.07953434]
[1737305303156,0.30964399,104910.0,104900.0,0.08251935]
[1737305303553,0.30964399,104910.0,104900.0,0.08251936]
[1737305303752,0.26321733,104910.0,104900.0,0.25112432]
[1737305304664,0.26321733,104910.0,104900.0,0.25410934]
[1737305306058,0.26321733,104910.0,104900.0,0.25112432]
[1737305306569,0.26321733,104910.0,104900.0,0.25888532]
[1737305307767,0.26321733,104910.0,104900.0,0.70026511]
[1737305307768,0.34831885,104910.0,104900.0,0.70026511]
[1737305310166,0.23416013,104910.0,104900.0,0.70026511]
[1737305312258,0.34827177,104910.0,104900.0,0.70026511]
[1737305313369,0.34827177,104910.0,104900.0,0.70026517]
[1737305313754,0.34827177,104910.0,104900.0,0.62073083]
[1737305313960,0.26786013,104910.0,104900.0,0.62073083]
[1737305314259,0.62866013,104910.0,104900.0,0.62073083]
[1737305314870,0.62866013,104910.0,104900.0,0.62073098]
[1737305315475,0.26786013,104910.0,104900.0,0.62073098]
[1737305315772,0.62866013,104910.0,104900.0,0.62073098]
[1737305317270,0.62866013,104910.0,104900.0,0.57475557]
[1737305317867,0.62866013,104910.0,104900.0,0.80390432]
[1737305318275,0.62866013,104910.0,104900.0,0.85163732]
[1737305318467,0.26786013,104910.0,104900.0,0.85163732]
[1737305319572,0.26786013,104910.0,104900.0,0.62248857]
[1737305320275,0.62866013,104910.0,104900.0,0.62248857]
[1737305320873,0.62866013,104910.0,104900.0,0.61472736]
[1737305321069,0.59496013,104910.0,104900.0,0.61472736]
[1737305321374,0.23416013,104910.0,104900.0,0.64912736]
[1737305321574,0.23416013,104910.0,104900.0,0.65211244]
[1737305321774,0.19977452,104910.0,104900.0,0.65211244]
[1737305321971,0.19977452,104910.0,104900.0,0.71929805]
[1737305322375,0.19977452,104910.0,104900.0,1.04571244]
[1737305322565,0.19977452,104910.0,104900.0,1.08009805]
[1737305322876,0.19977452,104910.0,104900.0,1.04571244]
[1737305323375,0.23416013,104910.0,104900.0,1.04571244]
[1737305323577,0.19977452,104910.0,104900.0,1.08009805]
[1737305324078,0.22883172,104910.0,104900.0,0.91407363]
[1737305324773,0.17175561,104910.0,104900.0,0.91884896]
[1737305325278,0.21818044,104910.0,104900.0,0.91884896]
[1737305326481,0.31441724,104910.0,104900.0,0.87111596]
[1737305326679,0.31441724,104910.0,104900.0,0.95154896]
[1737305327270,0.31441724,104910.0,104900.0,0.78905232]
[1737305327774,0.14266163,104910.0,104900.0,0.78905232]
[1737305328175,0.17175561,104920.0,104900.0,0.82343793]
[1737305328381,0.60936351,104940.0,104930.0,0.047719]
[1737305328583,0.60936351,104940.0,104930.0,0.44290461]
[1737305328584,0.20084651,104940.0,104930.0,0.44290461]
[1737305328767,0.20084651,104940.0,104930.0,0.51550315]
[1737305328768,0.28294712,104940.0,104930.0,0.51550315]
[1737305328971,0.28294712,104940.0,104930.0,0.52027779]
[1737305329283,0.51085175,104940.0,104930.0,0.52027779]
[1737305329483,0.51085175,104940.0,104930.0,0.52027721]
[1737305330185,0.51085175,104940.0,104930.0,0.51550293]
[1737305330884,0.51085175,104940.0,104930.0,0.83935403]
[1737305330885,0.08353057,104940.0,104930.0,0.83935403]
[1737305332179,0.08353057,104940.0,104930.0,0.74400969]
[1737305332775,0.04914496,104940.0,104930.0,0.74400969]
[1737305333583,0.04914496,104940.0,104930.0,0.38320969]
[1737305333776,0.04914496,104940.0,104930.0,0.74400969]
[1737305335179,0.04914496,104940.0,104930.0,0.91522838]
[1737305335585,0.04914496,104940.0,104930.0,0.87992838]
[1737305335883,0.04914496,104940.0,104930.0,0.51614445]
[1737305337073,0.04914496,104940.0,104930.0,0.87694445]
[1737305337687,0.04914496,104940.0,104930.0,0.477219]
[1737305340090,0.04914496,104940.0,104930.0,0.116419]
[1737305341390,0.101567,104940.0,104930.0,0.0343]
[1737305341692,0.047719,104930.0,104920.0,0.47048982]
[1737305341896,0.047719,104930.0,104920.0,0.50787396]
[1737305342585,0.00142996,104940.0,104920.0,0.50787396]
[1737305342784,0.04914896,104940.0,104930.0,0.047719]
[1737305345086,0.40994896,104940.0,104930.0,0.047719]
[1737305345487,0.04914896,104940.0,104930.0,0.46094104]
[1737305345799,0.00142996,104940.0,104930.0,0.46094104]
[1737305346297,0.23740003,104950.0,104940.0,0.047715]
[1737305347494,0.12361475,104950.0,104940.0,0.047715]
[1737305350994,0.07590075,104950.0,104940.0,0.047715]
[1737305351203,0.07590075,104950.0,104940.0,0.05069889]
[1737305352899,0.11029701,104950.0,104940.0,0.05069888]
[1737305353105,0.28116688,104950.0,104940.0,0.05069888]
[1737305353498,0.24677062,104950.0,104940.0,0.05069888]
[1737305353798,0.28116688,104950.0,104940.0,0.05069888]
[1737305354107,0.28116688,104950.0,104940.0,0.05547299]
[1737305355208,0.23726987,104950.0,104940.0,0.45066925]
[1737305355404,0.20426987,104950.0,104940.0,0.45066925]
[1737305355706,0.17086987,104950.0,104940.0,0.52583271]
[1737305356405,0.17086987,104950.0,104940.0,0.52583099]
[1737305356905,0.17086987,104950.0,104940.0,0.50943525]
[1737305357098,0.17086987,104950.0,104940.0,0.59285903]
[1737305357403,0.17086987,104950.0,104940.0,0.54046225]
[1737305357805,0.11411541,104950.0,104940.0,0.72659765]
[1737305358007,0.21727167,104960.0,104950.0,0.04771]
[1737305358307,0.21727167,104960.0,104950.0,0.47463025]
[1737305358509,0.21727167,104960.0,104950.0,0.50723025]
[1737305359098,0.21727167,104960.0,104950.0,0.49649014]
[1737305359499,0.3135963,104960.0,104950.0,0.49649014]
[1737305360696,0.12509528,104970.0,104950.0,1.3460882]
[1737305360896,0.12509528,104970.0,104960.0,0.408506]
[1737305361213,0.068,104970.0,104960.0,0.408506]
[1737305361807,0.068,104970.0,104960.0,0.57983276]
[1737305362808,0.068,104970.0,104960.0,0.66752954]
[1737305362809,0.0346,104970.0,104960.0,0.66752954]
[1737305363211,0.0346,104970.0,104960.0,0.61513276]
[1737305363807,0.0346,104970.0,104960.0,0.66752954]
[1737305364111,0.62185306,104980.0,104970.0,0.047701]
[1737305364416,0.65695306,104980.0,104970.0,0.047701]
[1737305364710,0.66641535,104980.0,104970.0,0.047701]
[1737305365110,0.30561535,104980.0,104970.0,0.047701]
[1737305366510,0.16288892,104980.0,104970.0,0.047701]
[1737305367114,0.52368892,104980.0,104970.0,0.047701]
[1737305367917,0.5760857,104980.0,104970.0,0.047701]
[1737305368216,0.5283887,104980.0,104960.0,0.21903076]
[1737305368512,0.10009778,104970.0,104960.0,0.22201385]
[1737305368905,0.10009778,104970.0,104960.0,0.22201402]
[1737305369110,0.10009778,104970.0,104960.0,0.21903076]
[1737305369416,0.10009778,104970.0,104960.0,0.05068729]
[1737305369713,0.047701,104970.0,104960.0,0.047704]
[1737305370517,0.047701,104970.0,104960.0,0.05068724]
[1737305371110,0.047701,104970.0,104960.0,0.047704]
[1737305372517,0.047701,104970.0,104960.0,0.05068729]
[1737305373111,0.10009778,104970.0,104960.0,0.05068729]
[1737305374212,0.10009778,104970.0,104960.0,0.047704]
[1737305375917,0.27096765,104970.0,104960.0,0.047704]
[1737305377324,0.21857087,104970.0,104960.0,0.047704]
[1737305377713,0.047701,104970.0,104960.0,0.047704]
[1737305378412,0.9510101,104980.0,104970.0,0.047701]
[1737305378613,0.9033131,104980.0,104970.0,0.10009778]
[1737305378809,0.9033131,104980.0,104970.0,0.08207125]
[1737305379014,0.5425131,104980.0,104970.0,0.44287125]
[1737305379412,0.31460847,104980.0,104970.0,0.44287125]
[1737305380028,0.36230547,104980.0,104970.0,0.44287125]
[1737305380614,0.33420702,104980.0,104970.0,0.44287125]
[1737305381216,0.33420702,104980.0,104970.0,0.45062692]
[1737305382515,0.19725917,104980.0,104970.0,0.45062692]
[1737305382914,0.16288892,104980.0,104970.0,0.45062692]
[1737305383215,0.19725917,104980.0,104970.0,0.45062692]
[1737305383720,0.18779688,104980.0,104970.0,0.48966044]
[1737305384021,0.18779688,104980.0,104970.0,0.85046044]
[1737305384225,0.18779688,104980.0,104970.0,0.85046025]
[1737305384622,0.15342663,104980.0,104970.0,0.85046025]
[1737305385013,0.15342663,104980.0,104970.0,0.67913349]
[1737305385214,0.18779688,104980.0,104970.0,0.67913349]
[1737305385522,0.15342663,104980.0,104970.0,0.67913349]
[1737305385821,0.15342663,104980.0,104970.0,0.68893443]
[1737305386022,0.29625304,104980.0,104970.0,0.68893443]
[1737305386412,0.29625304,104980.0,104970.0,0.68893442]
[1737305387423,0.29625304,104980.0,104970.0,0.32813442]
[1737305387720,0.29625304,104980.0,104970.0,0.68893442]
[1737305388026,0.29625304,104980.0,104970.0,0.32813442]
[1737305388215,0.29625304,104980.0,104970.0,0.68893442]
[1737305388416,0.29625304,104980.0,104970.0,0.68893446]
[1737305388611,0.29625304,104980.0,104970.0,0.86037513]
[1737305389416,0.29625304,104980.0,104970.0,0.85261962]
[1737305390125,0.14282641,104980.0,104970.0,0.85261962]
[1737305390325,0.14282641,104980.0,104970.0,0.92151962]
[1737305390520,0.19941655,104980.0,104970.0,0.55594244]
[1737305391312,0.249388,105000.0,104990.0,0.047692]
[1737305391313,0.1,105000.0,104990.0,0.047692]
[1737305391517,0.1,105000.0,104990.0,0.80664476]
[1737305391718,0.1,105000.0,104990.0,0.87554476]
[1737305391919,0.1,105000.0,104990.0,0.88031621]
[1737305392319,0.1,105000.0,104990.0,0.92661417]
[1737305392629,0.22790463,105020.0,105010.0,0.047683]
[1737305392828,0.22790463,105020.0,105010.0,0.46081429]
[1737305393122,0.22790463,105020.0,105010.0,0.443583]
[1737305393123,0.27558363,105020.0,105010.0,0.443583]
[1737305393513,0.26530945,105020.0,105010.0,0.443583]
[1737305394813,0.26530945,105020.0,105010.0,0.082783]
[1737305395128,0.21763045,105020.0,105010.0,0.49591429]
[1737305395430,0.14258367,105020.0,105010.0,0.49591429]
[1737305396322,0.14258367,105020.0,105010.0,0.49889579]
[1737305396720,0.14258367,105020.0,105010.0,0.53299579]
[1737305396921,0.39122001,105030.0,105020.0,0.047679]
[1737305397116,0.39122001,105030.0,105020.0,0.46081029]
[1737305397424,0.38143688,105030.0,105020.0,0.46081029]
[1737305397730,0.38143688,105030.0,105020.0,0.46379169]
[1737305397929,0.38143688,105030.0,105020.0,0.4114604]
[1737305398135,0.0676,105030.0,105020.0,0.408479]
[1737305398430,0.0676,105030.0,105020.0,0.46081029]
[1737305398826,0.14418364,105040.0,105020.0,0.41313129]
[1737305399024,0.09185235,105040.0,105030.0,0.10000529]
[1737305399222,0.09185235,105040.0,105030.0,0.047674]
[1737305399529,0.04418135,105040.0,105030.0,0.10000529]
[1737305400125,0.04418135,105040.0,105030.0,0.047674]
[1737305400940,0.09651264,105040.0,105030.0,0.047674]
[1737305403530,0.45731264,105040.0,105030.0,0.047674]
[1737305403736,0.09651264,105040.0,105030.0,0.047674]
[1737305403926,0.14418164,105040.0,105030.0,0.047674]
[1737305404127,0.14418164,105040.0,105020.0,0.3608]
[1737305404329,0.0362,105030.0,105020.0,0.41145835]
[1737305405338,0.0362,105030.0,105020.0,0.41622857]
[1737305405935,0.0362,105030.0,105020.0,0.05542857]
[1737305406334,0.0362,105030.0,105020.0,0.41622869]
[1737305406531,0.0696,105030.0,105020.0,0.408477]
[1737305406838,0.0696,105030.0,105020.0,0.41622864]
[1737305409141,0.0696,105030.0,105020.0,0.05542864]
[1737305409339,0.0696,105030.0,105020.0,0.41622864]
[1737305410327,0.0696,105030.0,105020.0,0.05542864]
[1737305410834,0.4304,105030.0,105020.0,0.05542864]
[1737305411134,0.0696,105030.0,105020.0,0.05542864]
[1737305411329,0.4304,105030.0,105020.0,0.05542864]
[1737305411531,0.4304,105030.0,105020.0,0.047677]
[1737305412845,0.58273958,105030.0,105010.0,0.047681]